Cogmind - Beta 16 @@@ ROGUE MODE // 2025.10.25 @ 03:35:00 Player: Zaros426 Result: Destroyed by Y-45 Defender with Beam Rifle Performance ------------- Evolutions (0) 0 Regions Visited (3) 600 Robots Destroyed (57) 285 Value Destroyed (1176) 1176 Prototype IDs (2) 40 Alien Tech Used (0) 0 Bonus (4) 4 TOTAL SCORE: 2105 Bonus ------- Follower Combat Kills 30 Friendly Fire -26 Cogmind --------- Core Integrity 0/250 Matter 292/300 Energy 200/200 System Corruption 0% Temperature Cool (9) Movement Treading (240) Ox1 Location -10/Subcaves Parts ------- > --- POWER (1) -------- Subdweller Power Source > --- PROPULSION (2) --- Light Treads Light Treads > --- UTILITY (2) ------ High-capacity Storage Unit Targeting Computer > --- WEAPON (2) ------- Subdweller Machine Gun Subdweller Machine Gun > --- INVENTORY (20) --- Large Storage Unit Huge Storage Unit High-capacity Matter Pod (200) High-capacity Matter Pod (200) Structural Scanner Seismic Detector Transport Network Coupler ECM Suite Scrap Shield Shield Generator Hacking Suite Subdweller Beam Cannon Subdweller Beam Cannon Subdweller Machine Gun Grenade Launcher Datajack Ripper Peak State ------------ > --- POWER ------------ Subdweller Power Source > --- PROPULSION ------- Light Treads Light Treads > --- UTILITY ---------- High-capacity Storage Unit Targeting Computer > --- WEAPON ----------- Grenade Launcher Ripper > --- INVENTORY -------- Light Treads Light Treads Large Storage Unit Huge Storage Unit High-capacity Matter Pod High-capacity Matter Pod Structural Scanner Seismic Detector Transport Network Coupler ECM Suite Shield Generator Hacking Suite Subdweller Laser Subdweller Beam Cannon Shotgun Subdweller Machine Gun Makeshift Shrapnel Gun Grenade Launcher Datajack Mining Laser [Rating: 14] Favorites ----------- Power Subdweller Power Source Engine Subdweller Power Source Propulsion Light Treads Treads Light Treads Utility Targeting Computer Device Seismic Detector Storage High-capacity Storage Unit Processor Targeting Computer Weapon Shotgun Energy Gun Medium Laser Energy Cannon Subdweller Beam Cannon Ballistic Gun Shotgun Launcher Grenade Launcher Special Weapon Mining Laser Impact Weapon Hammer Slashing Weapon Ripper Build | -11 -10 -10 -10 ------- Run | Yrd Mat Min Sub Slots Evolved . | . . . . Power . | . . . . Propulsion . | . . . . Utility . | . . . . Weapon . | . . . . Parts Attached 29 | 7 10 . 12 Power 3 | 1 1 . 1 Engine 3 | 1 1 . 1 Core . | . . . . Reactor . | . . . . Propulsion 4 | 2 . . 2 Treads 4 | 2 . . 2 Leg . | . . . . Wheel . | . . . . Hover . | . . . . Flight . | . . . . Utility 6 | 2 4 . . Device 1 | 1 . . . Storage 4 | 1 3 . . Processor 1 | . 1 . . Hackware . | . . . . Protection . | . . . . Artifact . | . . . . Weapon 16 | 2 5 . 9 Energy Gun 1 | 1 . . . Energy Cannon 2 | . . . 2 Ballistic Gun 8 | 1 4 . 3 Ballistic Cannon . | . . . . Launcher 2 | . . . 2 Special Weapon 1 | . 1 . . Impact Weapon 1 | . . . 1 Slashing Weapon 1 | . . . 1 Piercing Weapon . | . . . . Special Melee Weapon . | . . . . Unidentified Prototypes . | . . . . Parts Lost 3 | . . . 3 Power . | . . . . Propulsion 2 | . . . 2 Utility . | . . . . Weapon 1 | . . . 1 Highest Loss Streak 1 | . . . 1 To Critical Strikes . | . . . . Average Backups 16 | 1 10 17 19 Power . | . . . . Propulsion 1 | . 1 2 1 Utility 7 | . 3 8 10 Weapon 6 | 1 4 6 7 Tool/Special . | . . . . Unused Backups 18 | . 2 . 16 Power . | . . . . Propulsion . | . . . . Utility 9 | . . . 9 Weapon 8 | . 2 . 6 Tool/Special 1 | . . . 1 Average Slot Usage (%) 99 | . 100 100 99 Engine 14 | . 14 14 14 Treads 27 | . 28 28 27 Device 2 | . 9 . . Storage 14 | . 14 14 14 Processor 11 | . 4 14 14 Energy Cannon 6 | . . . 11 Ballistic Gun 16 | . 27 28 7 Launcher 3 | . . . 6 Slashing Weapon 1 | . . . 2 Peak Build Rating 14 | 7 11 11 14 Average Rating 11 | 5 9 11 12 On Entrance 7 | . 7 11 11 Avg Prop Armor Cover (%) . | . . . . Naked Turns . | . . . . Heaviest Build 92 | 14 92 51 61 Greatest Support 40 | 40 40 40 40 Greatest Overweight (x) 2 | . 2 1 1 Average Overweight (x) . | . . 1 1 Largest Inventory Capacity 25 | 8 25 20 20 Average Capacity 18 | 7 15 20 20 Most Carried 20 | 2 17 20 20 Average Carried 16 | 1 10 17 19 Final Capacity 20 | 8 20 20 20 Final Carried 20 | 2 17 20 18 Class Distribution -------------------- 73% | Mutant 26% | Scavenger-Mutant Dominant Class ---------------- Mutant | -10/Materials Mutant | -10/Mines Scavenger-Mutant | -10/Subcaves Resources | -11 -10 -10 -10 ----------- Run | Yrd Mat Min Sub Matter Collected 1687 | 288 556 501 342 Remotely . | . . . . Salvage Created 1794 | 166 860 231 537 Parts 129 | 8 65 20 36 Haulers Intercepted 2 | . 2 . . Recyclers Shooed 3 | 1 2 . . Parts Field Recycled . | . . . . Retrieved Matter . | . . . . Parts Self-Destructed 13 | . . . 13 Prevented . | . . . . Parts Restored . | . . . . Kills | -11 -10 -10 -10 ------- Run | Yrd Mat Min Sub Combat Hostiles Destroyed 33 | . 15 5 13 Melee 1 | . . . 1 Guns 23 | . 15 5 3 Cannons 3 | . . . 3 AOE 5 | . . . 5 Classes Destroyed 11 | 3 7 . 1 Worker 4 | 1 3 . . Builder 7 | . 6 1 . Tunneler 4 | 3 1 . . Hauler 2 | . 2 . . Recycler 2 | 1 1 . . Mechanic 1 | . 1 . . Operator 1 | . 1 . . Watcher 3 | . 3 . . Swarmer 8 | . 5 . 3 Grunt 15 | . 10 5 . Subdweller 10 | . . . 10 Best Kill Streak 4 | 4 4 3 3 Combat Bots Only 3 | . 3 3 3 Max Kills in Single Turn 3 | 1 2 1 3 Gunslinging . | . . . . Exploded 3 | . . . 3 Melee 1 | . . . 1 Uniques/NPCs Destroyed . | . . . . Combat | -11 -10 -10 -10 -------- Run | Yrd Mat Min Sub Hostile Shots Fired 115 | . 35 21 59 Missed 31 | . 8 2 21 Hits 84 | . 27 19 38 Projectile 84 | . 27 19 38 Damage Taken 1116 | . 281 240 595 Core 263 | . 78 34 151 Absorbed by Shields . | . . . . Core Remaining (%) 100 | 100 . . . Volleys Fired 144 | 18 68 17 41 Largest 2 | 2 2 2 2 Hottest 160 | 70 100 46 160 Shots Fired 276 | 34 131 34 77 Gun 239 | 34 126 34 45 Cannon 28 | . . . 28 Launcher 4 | . . . 4 Special 5 | . 5 . . Kinetic 221 | 18 124 34 45 Thermal 51 | 16 7 . 28 Explosive 4 | . . . 4 Electromagnetic . | . . . . Robot Hit Streak 17 | 12 16 11 17 Robot Miss Streak 5 | 3 5 4 1 Penetration Max . | . . . . Secondary Targets 2 | . 1 1 . Max Gunslinging Chain 1 | . 1 1 . Shots Hit Robots 191 | 19 86 30 56 Core Hits 102 | 7 54 17 24 Critical Kills 4 | . 1 . 3 Critical Parts Destroyed . | . . . . Critical Strikes 6 | 2 1 . 3 Burn 2 | 2 . . . Meltdown 1 | . . . 1 Destroy 3 | . 1 . 2 Melee Attacks 15 | . . . 15 Impact 5 | . . . 5 Slashing 10 | . . . 10 Piercing . | . . . . Sneak Attacks 2 | . . . 2 Combat Hostiles . | . . . . Follow-up Attacks . | . . . . Damage Inflicted 3506 | 211 1310 528 1457 Guns 2704 | 211 1310 528 655 Cannons 489 | . . . 489 Explosions 274 | . . . 274 Melee 39 | . . . 39 Ramming . | . . . . Kinetic 2569 | 88 1298 528 655 Thermal 624 | 123 12 . 489 Explosive 274 | . . . 274 Electromagnetic . | . . . . Impact . | . . . . Slashing 39 | . . . 39 Piercing . | . . . . Highest Corruption . | . . . . Average Corruption . | . . . . Corruption Purged . | . . . . Corruption Blocked . | . . . . Overload Shots . | . . . . Overflow Damage . | . . . . Projectiles . | . . . . Explosions . | . . . . Melee . | . . . . Knockbacks . | . . . . Impact . | . . . . Kinetic . | . . . . Secondary . | . . . . Self-Inflicted Damage . | . . . . Shots . | . . . . Rammed . | . . . . Targets Rammed . | . . . . Kicked . | . . . . Crushed . | . . . . Highest Temperature 170 | 170 100 14 120 Average Temperature 47 | 71 32 7 51 Received Heat Transfer 405 | . 84 132 189 Siege Activations . | . . . . Martial Activations . | . . . . Shielding Activations . | . . . . Robots Disrupted . | . . . . Combat Hostiles . | . . . . Robots Corrupted . | . . . . Combat Hostiles . | . . . . Parts Fried . | . . . . Impact Corruptions . | . . . . Robots Melted 1 | . . . 1 Combat Hostiles 1 | . . . 1 Parts Melted 2 | . . . 2 Heat Transferred 1221 | 518 37 . 666 Parts Sabotaged . | . . . . Parts Stolen . | . . . . Parts Stripped . | . . . . Power Chain Reactions . | . . . . Alert | -11 -10 -10 -10 ------- Run | Yrd Mat Min Sub Maximum Alert Level . | . . . . Low Security (%) 100 | 100 100 100 . Level 1 . | . . . . Level 2 . | . . . . Level 3 . | . . . . Level 4 . | . . . . Level 5 . | . . . . High Security . | . . . . Max Security . | . . . . Peak Influence 156 | 15 156 60 . Initial 48 | . . 48 . Average 30 | 2 49 7 . Influence Increases 784 | 25 525 130 104 Destroy 0b10 Robot/C 460 | . 300 100 60 Destroy 0b10 Robot/NC 125 | 25 90 10 . Destroy Leader 100 | . 70 20 10 Allied During Kill 4 | . . . 4 Select Force Hacks 60 | . 60 . . Destroy Structure 5 | . 5 . . Lose Combat Pursuer 30 | . . . 30 Influence Decreases 784 | 25 401 254 104 Entered New Map 76 | . . 76 . Time Decay 698 | 25 401 178 94 Lost Part 10 | . . . 10 Squads Dispatched 5 | . 5 . . Investigation 4 | . 4 . . Extermination . | . . . . Reinforcement 1 | . 1 . . Assault . | . . . . Garrison . | . . . . Intercept . | . . . . Searches Triggered . | . . . . Construction Impeded . | . . . . Haulers Reinforced . | . . . . Active Scanning Responses . | . . . . Cargo Convoy Interrupts . | . . . . Stealth | -11 -10 -10 -10 --------- Run | Yrd Mat Min Sub Distress Signals 2 | . 2 . . Communications Jammed . | . . . . Distress Signals . | . . . . Times Spotted 43 | . 23 5 15 Peak Tracking Total 3 | . 3 3 3 Tactical Retreats 1 | . . . 1 Traps | -11 -10 -10 -10 ------- Run | Yrd Mat Min Sub Traps Triggered 4 | . 3 . 1 Indirectly . | . . . . Trap Hack Attempts . | . . . . Triggered . | . . . . Disarmed . | . . . . Reprogrammed . | . . . . Reused . | . . . . Traps Extracted . | . . . . Installed . | . . . . Triggered . | . . . . Machines | -11 -10 -10 -10 ---------- Run | Yrd Mat Min Sub Machines Disabled . | . . . . Max in Single Turn . | . . . . Machines Repaired . | . . . . Machines Dismantled . | . . . . Machines Sabotaged . | . . . . Overloaded Fab Kills . | . . . . Hacking | -11 -10 -10 -10 --------- Run | Yrd Mat Min Sub Machines Accessed 11 | . 9 . 2 Terminals 7 | . 7 . . Fabricators . | . . . . Repair Stations . | . . . . Recycling Units 2 | . 2 . . Scanalyzers . | . . . . Garrison Access . | . . . . Total Hacks 30 | . 25 . 5 Successful 13 | . 8 . 5 Failed 17 | . 17 . . Catastrophic 3 | . 3 . . Database Lockouts . | . . . . Manual 13 | . 13 . . Terminals 23 | . 23 . . Fabricators . | . . . . Repair Stations . | . . . . Recycling Units 2 | . 2 . . Scanalyzers . | . . . . Garrison Access . | . . . . Terminal Hacks 10 | . 5 . 5 Record 4 | . . . 4 Robot Analysis 1 | . 1 . . Prototype ID Bank 1 | . 1 . . Open Door 1 | . . . 1 Locate Traps 2 | . 2 . . Zone Layout 1 | . 1 . . Fabricator Hacks . | . . . . Repair Station Hacks . | . . . . Recycling Unit Hacks . | . . . . Scanalyzer . | . . . . Garrison Access Hacks . | . . . . Unauthorized Hacks 3 | . 3 . . Terminals 1 | . 1 . . Skim 1 | . 1 . . Fabricators . | . . . . Repair Stations . | . . . . Recycling Units 2 | . 2 . . Tunnel 2 | . 2 . . Scanalyzers . | . . . . Garrison Access . | . . . . Data Cores Recovered . | . . . . Used . | . . . . Hacking Detections 7 | . 7 . . Full Trace Events . | . . . . Feedback Events . | . . . . Feedback Blocked . | . . . . Robot Schematics Acquired . | . . . . Robots Built . | . . . . Authchips . | . . . . Time . | . . . . Total Robot Build Rating . | . . . . Part Schematics Acquired . | . . . . Parts Built . | . . . . Authchips . | . . . . Time . | . . . . Total Part Build Rating . | . . . . Part Studies Acquired . | . . . . Parts Repaired . | . . . . Time . | . . . . Parts Recycled . | . . . . Recycled Matter . | . . . . Retrieved Matter . | . . . . Retrieved Components . | . . . . Parts Scanalyzed . | . . . . Part Schematics Acquired . | . . . . Parts Damaged . | . . . . Bothacking | -11 -10 -10 -10 ------------ Run | Yrd Mat Min Sub Used RIF Installer . | . . . . Robots Hacked . | . . . . Non-combat . | . . . . Combat . | . . . . Robot Hacks Applied . | . . . . Relay Couplers Released . | . . . . Fabnet Peak Effective % . | . . . . Robots Rewired . | . . . . Allies Hacked . | . . . . Hacks Repelled . | . . . . Allies | -11 -10 -10 -10 -------- Run | Yrd Mat Min Sub Total Allies 1 | . . 1 . Largest Group 1 | . . 1 1 Highest-Rated Group 31 | . . 31 31 Highest-Rated Ally 31 | . . 31 31 Total Orders . | . . . . Ally Attacks 8 | . . . 8 Total Damage 80 | . . . 80 Kills 1 | . . . 1 Allies Corrupted . | . . . . Allies Melted . | . . . . Intel | -11 -10 -10 -10 ------- Run | Yrd Mat Min Sub Active Infowar (turns) 1336 | 33 1303 . . Seismic 1336 | 33 1303 . . Robot Analysis Total 1 | . 1 . . Derelict Logs Recovered 3 | . . 2 1 Drone Launches . | . . . . Drone Recoveries . | . . . . Exploration | -11 -10 -10 -10 ------------- Run | Yrd Mat Min Sub Turns Passed 7426 | 184 1886 1398 3958 Spaces Moved 2912 | 80 721 551 1560 Core 3 | 3 . . . Treads 2909 | 77 721 551 1560 Legs . | . . . . Wheels . | . . . . Hover . | . . . . Flight . | . . . . Fastest Speed 50 | 50 160 240 240 Average Speed 227 | 155 199 240 240 Slowest Speed 320 | 160 320 240 240 Overloaded Moves . | . . . . Propulsion Burnouts . | . . . . Robots Hopped . | . . . . Potential Cave-ins . | . . . . Cave-ins Triggered . | . . . . Exploration Rate (%) 72 | 6 99 99 84 Regions Visited 3 Branch Regions 2 Pre-discovered Areas 2 | . 2 . . Known Exits Taken 1 | . . 1 . Unknown Exits Taken 2 | 1 1 . . Scrap Searched 7 | . . 1 6 Spaces Dug 7 | . 5 . 2 Terrain Destroyed 26 | . 5 . 21 Melee 2 | . . . 2 Projectile 6 | . 5 . 1 AOE 18 | . . . 18 Terrain Rammed . | . . . . Walls Destroyed . | . . . . Machines Disabled . | . . . . Actions | -11 -10 -10 -10 --------- Run | Yrd Mat Min Sub Total 3404 | 106 1032 594 1672 Wait 240 | . 200 24 16 Move 2909 | 79 720 550 1560 Hop . | . . . . Pick Up 37 | 2 22 3 10 Fast Attach 9 | 7 . . 2 Attach 5 | . 2 . 3 Detach . | . . . . Swap 20 | . 9 . 11 Drop 23 | . 11 . 12 Fire 144 | 18 68 17 41 Melee 15 | . . . 15 Ram . | . . . . Kick . | . . . . Crush . | . . . . Escape Stasis . | . . . . Rewire 2 | . . . 2 Trap . | . . . . Miscellaneous . | . . . . Route ------- -11/Scrapyard -10/Materials (discovered 6 exits: [*Mat x3] / [*Min x2] / *Sub) -10/Mines (discovered 3 exits: [*Mat x2] / *Sub) -10/Subcaves (discovered 3 exits: [*Mat x2] / [*Scr]) History --------- Turn | Location | Event 2 | -11/Scrapyard | Met Revision 17 12 | -11/Scrapyard | Discovered new exit (range 14) 185 | -11/Scrapyard | Entered Materials 243 | -10/Materials | Discovered new exit (range 5) 318 | -10/Materials | Build established: Mutant 394 | -10/Materials | Discovered new exit (range 6) 785 | -10/Materials | Derelicts attacked the area 860 | -10/Materials | Discovered new exit (range 11) 1170 | -10/Materials | Discovered new exit (range 16) 1560 | -10/Materials | Discovered new exit (range 15) 1765 | -10/Materials | Discovered new exit (range 8) 2071 | -10/Materials | Entered Mines 2199 | -10/Mines | Met a Derelict bent on vengeance 2263 | -10/Mines | Learned location of 1 exit from Materials 2472 | -10/Mines | Escorted by a lone wolf Derelict 2767 | -10/Mines | Discovered new exit (range 6) 2809 | -10/Mines | Discovered new exit (range 3) 3292 | -10/Mines | Identified exit to Subcaves 3469 | -10/Mines | Entered Subcaves 3469 | -10/Subcaves | Accompanied by 1 ally 3470 | -10/Subcaves | Approached by a straggling Scientist 4214 | -10/Subcaves | Discovered new exit (range 5) 4236 | -10/Subcaves | Shifting Twisted Machinery released Sub. Power Source 4286 | -10/Subcaves | Shifting Twisted Machinery released Ripper 5069 | -10/Subcaves | Discovered new exit (range 10) 5418 | -10/Subcaves | Core integrity fell below 50% 5523 | -10/Subcaves | Visited Clippyterm 5530 | -10/Subcaves | Learned Factory fabricator intel 5738 | -10/Subcaves | Build established: Scavenger-Mutant 6554 | -10/Subcaves | Learned location of 1 exit from Materials 6813 | -10/Subcaves | Disturbed a concealed Subdweller 6822 | -10/Subcaves | Core integrity fell below 20% 7427 | -10/Subcaves | Destroyed by Y-45 Defender with Beam Rifle Last Messages --------------- 06853_ Searching scrap... 06853_ Found Sub. Machine Gun. 06853_ Found Barrage Gun. 06853_ Found 47 Matter. 06854_ Acquired 7 matter. 06855_ Searching scrap... 06855_ Found Sub. Machine Gun. 06855_ Found Scrap Shield. 06855_ Found 36 Matter. 06858_ Searching scrap... 06858_ Found Mak. Thermal Plating. 06858_ Found 60 Matter. 06867_ Dropped Mak. Shrapnel Gun. 06868_ Dropped Grenade Launcher. 06868_ Dropped Mining Laser. 06869_ Acquired Scrap Shield. 07187_ WT-ZA9(R): "WEHOME!" 07198_ WT-ZA9(R) suffers critical hit (Destroy). 07198_ WT-ZA9(R) destroyed. 07201_ Acquired 12 matter. Map ----- +----------------------------------------------------+ | ?????????????????? ## ??????????????????????? | | ??????????????????? ?????????????????????? | | ???????????????????? ?????????????????????? | | ???????????????????? ?????????########???? | | ??????????????????????? ######??## #???? | | ??????????????????????????# #### #???? | | ??????????????????????????# #???# | | ??????????????????????????# ####?### | | ??????????????????????????#### # # # ##### | | ????????????????????? ?###?####### # # # # | | ????????????????????? ## ####???# # ## | | ????????????????????? ##?# #### ## | | ??????????????????? Y ## #??##### ## | | ??????????????????? ? # ######## # | | ???????????????????? ? ## ## # # | | ????????????????????# ??# ?##### | | ????????????????????# ???# ????## | | ?????????????#??????# ??## #???## # | | ???????????? ???## #?# ##### #### | | ????????????# ### ## ## ### | | ????????????# ## # | | ????????????# ## ## | | ???????????## > ##? | | ???????????? ## ##?? | | ?????????????????# #### # ## #??? | | ?????????????????## @ #??# ######??? | | ??????????????????# #??## #??????? | | ??????????????????########## #???## #??????? | | ???????????????????????????# ###????#### #??????? | | ???????????????????????????###?????????####??????? | | ?????????????????????????????????????????????????? | | ?????????????????????????????????????????????????? | | ?????????????????????????????????????????????????? | | ?????????????????????????????????????????????????? | | ?????????????????????????????????????????????????? | | ?????????????????????????????????????????????????? | | ?????????????????????????????????????????????????? | | ?????????????????????????????????????????????????? | | ?????????????????????????????????????????????????? | | ?????????????????????????????????????????????????? | | ?????????????????????????????????????????????????? | | ?????????????????????????????????????????????????? | | ?????????????????????????????????????????????????? | | ?????????????????????????????????????????????????? | | | | | | | | | | | | | +----------------------------------------------------+ Best States ------------- Heat Dissipation 25 Energy Generation 10 Energy Capacity 250 Matter Stores 300 Matter Capacity 300 Sight Range 16 Terrain Scan Density 10 Evasion (%) 40 Targeting Accuracy 5 Recoil Reduction 2 Item Schematics ----------------- None Robot Schematics ------------------ None Fabricated ------------ Nothing Repaired ---------- Nothing Studied --------- None Alien Tech Used ----------------- None Achievements -------------- You Again Challenges ------------ None Game ------ Seed ShockAerolevBattery Manual? 0 Play Time 00:25:09 Cumulative 22.0 hours Start 2025.10.25 @ 03:13:03 End 2025.10.25 @ 03:35:00 Sessions 1 Manual Loads 0 Difficulty Rogue Special Mode None Game No. 13 Rogue 13 Adventurer 0 Explorer 0 Win Type - Total 0 Types 0/0/0/0/0/0/0/0/0/0 Lore% 43 Gallery% 34 Achievement% 36 Wizard Run 0 Options --------- Layout 0 ASCII 0 Keyboard 0 Movement Mouse Keybinds 0 Fullscreen 1 Font 24/Smallcaps Map View 183x50 Zoom Use 0% Tactical HUD 1 Map Filters NONE Filters NONE Steam 1 RUN: 1ce6a76e-725e-43bc-b1ea-f0893b2fd3c8